{"text_format":"3","workbook":"xlsx","n_sheets":5,"sheets":["Introduction","Instructions","Definitions","Narrative Description","Availability Asesssment"],"not_rendered":{"macros":1,"defined_names":14},"read":"whole","date_system":"1900"}

{"sheet":"Introduction","index":0,"n_rows":4,"n_cols":2,"rows_kept":4,"merged":[[0,1,0,12],[1,1,1,12],[2,1,2,12],[3,1,8,12]]}
[null,"Introduction to the Assessment of the Availability of Mental Health Services"]
[null,"\nThis template has four tabs: 1) Instructions, 2) Definitions, 3) Narrative Description, and 4) Availability Assessment. \n\nStates are expected to complete the Narrative Description once, at the beginning of the demonstration, and the  Availability Assessment annually following the instructions on the Instructions tab \n\nQuestions should be directed to your CMS Project Officer\n\n"]
[null,"PRA Disclosure Statement This information is being collected to assist the Centers for Medicare & Medicaid Services in program monitoring of Medicaid Section 1115 Severe Mental Illness and Severe Emotional Disturbance Demonstrations. This mandatory information collection (42 CFR § 431.428) will be used to support more efficient, timely and accurate review of states’ monitoring report submissions of Medicaid Section 1115 Severe Mental Illness and Severe Emotional Disturbance Demonstrations, and also support consistency in monitoring and evaluation,  increase in reporting accuracy, and reduction in timeframes required for monitoring and evaluation. Under the Privacy Act of 1974 any personally identifying information obtained will be kept private to the extent of the law."]
[null,"According to the Paperwork Reduction Act of 1995, no persons are required to respond to a collection of information unless it displays a valid OMB control number. The valid OMB control number for this information collection is 0938-1148 (CMS-10398 #59). The time required to complete this information collection is estimated to average 29 hours per response, including the time to review instructions, search existing data resources, gather the data needed, and complete and review the information collection. If you have comments concerning the accuracy of the time estimate(s) or suggestions for improving this form, please write to: CMS, 7500 Security Boulevard, Attn: PRA Reports Clearance Officer, Mail Stop C4-26-05, Baltimore, Maryland 21244-1850."]

{"sheet":"Instructions","index":1,"n_rows":97,"n_cols":3,"rows_kept":97,"merged":[[1,1,1,12],[2,1,2,12],[3,1,3,12],[4,1,7,1],[4,2,4,12],[5,2,5,12],[6,2,6,12],[7,2,7,12],[8,2,8,12],[9,2,9,12],[10,2,10,12],[11,2,11,12],[12,2,12,12],[13,2,13,12],[14,2,14,12],[15,2,15,12],[16,2,16,12],[17,2,17,12],[18,2,18,12],[19,2,19,12],[20,2,20,12],[21,2,21,12],[22,2,22,12],[23,2,23,12],[24,2,24,12],[25,2,25,12],[26,2,26,12],[27,2,27,12],[28,2,28,12],[29,2,29,12],[30,2,30,12],[31,2,31,12],[32,2,32,12],[33,2,33,12],[34,2,34,12],[35,2,35,12],[36,2,36,12],[37,2,37,12],[38,2,38,12],[39,2,39,12],[40,2,40,12],[41,2,41,12],[42,2,42,12],[43,2,43,12],[44,2,44,12],[45,2,45,12],[46,2,46,12],[47,2,47,12],[48,2,48,12],[49,2,49,12],[50,2,50,12],[51,2,51,12],[52,2,52,12],[53,2,53,12],[54,2,54,12],[55,2,55,12],[56,2,56,12],[57,2,57,12],[58,2,58,12],[59,2,59,12],[60,2,60,12],[61,2,61,12],[62,2,62,12],[63,2,63,12],[64,2,64,12],[65,2,65,12],[66,2,66,12],[67,2,67,12],[68,2,68,12],[69,2,69,12],[70,2,70,12],[71,2,71,12],[72,2,72,12],[73,2,73,12],[74,2,74,12],[75,2,75,12],[76,2,76,12],[77,2,77,12],[78,2,78,12],[79,2,79,12],[80,2,80,12],[81,2,81,12],[82,2,82,12],[83,2,83,12],[84,2,84,12],[85,2,85,12],[86,2,86,12],[87,2,87,12],[88,2,88,12],[89,2,89,12],[90,2,90,12],[91,2,91,12],[92,2,92,12],[93,2,93,12],[94,2,94,12],[95,2,95,12]]}
[]
[null,"Instructions for Completing the Narrative Description (\"Narrative Description\" tab)   "]
[null,"The state will provide a brief narrative of baseline conditions in place at the beginning of the demonstration in the Narrative Description tab. The state should provide a brief response in the space below each question.  The state should complete this at the beginning of the demonstration only. "]
[null,"Instructions for Completing the Assessment of the Availability of Mental Health Services (\"Availability Assessment\" tab)  "]
[null,"Before you begin:","The state will submit multiple availability assessments. The state will submit an initial assessment at the time of application and annual assessments thereafter. "]
[null,null,"The state should select a consistent month in each year to populate the information in the availability assessment (e.g. provide initial information based on counts covering August 2019, and update the information based on counts covering August 2020, August 2021, August 2022, and August 2023).  "]
[null,null,"Enter the state name, data entry date(s), and time period reflected in the availability assessment in cells C1-3."]
[null,null,"To add rows for additional geographic designations, click the \"Add row\" button.  "]
[null,"Column   ","Instructions"]
[null,"B","In column B, enter each geographic designation starting in cell B8. Add rows as needed to capture all geographic designations. Geographic designation means a state-defined geographic unit for reporting data, such as county, region, or catchment area. The state should consider how it divides its mental health system into smaller units or catchment areas to select geographic designations that will yield meaningful, actionable information. "]
[null,"C","In column C, starting in cell C8, please select whether geographic designation entered in the corresponding cell in column B could be considered urban or rural.  If the geographic designation should be categorized as something other than urban or rural, select \"Other-please explain\" and record an explanation in the notes box in column D. Urban is defined as a Metropolitan Statistical Area or a Metropolitan division (in the case where a Metropolitan Statistical Area is divided into Metropolitan Divisions), as defined by the Executive Office of Management and Budget (42 CFR § 412.64(b))  Rural is defined as any area outside an urban area as defined in 42 CFR § 412.64(b)."]
[null,"D","In column D, beginning in cell D8, please use this space to explain the state's response if the state selects 'Other-please explain' in column C."]
[null,"E","In column E, starting in cell E8, enter the total number of adult Medicaid beneficiaries ages 18-20 in each geographic designation at the selected point in time. Medicaid beneficiary means a person who has been determined to be eligible to receive Medicaid services as defined at 42 CFR §400.200. Note: this age category is separate in order to avoid double counting beneficiaries in the residential treatment category and to facilitate the calculation of certain ratios in the assessment. See the note in the following cell for additional explanation "]
[null,"F","In column F, starting in cell F8, enter the number of adult Medicaid beneficiaries ages 18-20 with SMI in each geographic designation at the selected point in time. As defined on page 1 of the State Medicaid Directors Letter, serious mental illness means persons age 18 and over who currently, or at any time during the past year, have had a diagnosable mental, behavioral, or emotional disorder of sufficient duration to meet diagnostic criteria, that has resulted in functional impairment which substantially interferes with or limits one or more major life activities. \n\nNote: in the State Medicaid Directors letter (SMDL #18-011), SMI is defined to include individuals age 18 years and older, and SED includes children younger than 18. However, the residential treatment section of the availability assessment requests data on PRTFs, and the federal definition for PRTFs includes facilities that serve individuals under the age of 21. In order to avoid double counting beneficiaries in the residential treatment category, the assessment requests data on beneficiaries age 0-17, 18-20, and 21 and older separately.\n\n"]
[null,"G","In column G, starting in cell G8, enter the total number of adult Medicaid beneficiaries age 21 and older in each geographic designation at the selected point in time."]
[null,"H","In column H, starting in cell H8, enter the number of adult Medicaid beneficiaries age 21 and older with SMI in each geographic designation at the selected point in time. \n\nNote: in the SMDL, SMI is defined to include individuals age 18 years and older, and SED includes children younger than 18. However, the residential treatment section of the availability assessment requests data on PRTFs, and the federal definition for PRTFs includes facilities that serve individuals under the age of 21. In order to avoid double counting beneficiaries in the residential treatment category, the assessment requests data on beneficiaries age 0-17, 18-20, and 21 and older separately. "]
[null,"I","In column I, starting in cell I8, the availability assessment will automatically calculate the percent of adult Medicaid beneficiaries who have SMI in each geographic designation. The state should not input any values into this column or modify the formulas in this column. "]
[null,"J","In column J, starting in cell J8, enter the total number of Medicaid beneficiaries under the age of 18 in each geographic designation at the selected point in time. "]
[null,"K","In column K, starting in cell K8, enter the number of beneficiaries under the age of 18 with SED in each geographic designation at the selected point in time. As defined on page 2 of the SMDL, individuals with SED are those from birth up to age 18 who currently, or at any time during the past year, have had a diagnosable mental, behavioral, or emotional disorder of sufficient duration to meet diagnostic criteria that resulted in functional impairment which substantially interferes with or limits the child’s role or functioning in family, school, or community activities. Functional impairment” is defined as difficulties that substantially interfere with or limit a child or adolescent from achieving or maintaining one or more developmentally-appropriate social, behavioral, cognitive, communicative, or adaptive skills. "]
[null,"L","In column L starting in cell L8, the availability assessment will automatically calculate the percent of beneficiaries under the age of 18 who have SED in each geographic designation. The state should not input any values into this column or modify the formulas in this column. "]
[null,"M","In column M, starting in cell M8, the availability assessment will automatically calculate the number of Medicaid beneficiaries (total) in each geographic designation. "]
[null,"N","In column N, starting in cell N8, the availability assessment will automatically calculate the percent with Medicaid beneficiaries with SMI or SED (total) in each geographic designation."]
[null,"O","In column O, starting in cell O8, the availability assessment will automatically calculate the percent with SMI or SED (total) in each geographic designation."]
[null,"P","In column P, beginning in cell P8, please use this space to provide notes about or qualifications to beneficiary data. For example, use this cell to explain data limitations or missing data. "]
[null,"Q","In column Q, starting in cell Q8, enter the number of psychiatrists or other practitioners who are authorized to prescribe in each geographic designation.  A psychiatrist is any psychiatrist licensed to practice in the state under state licensure laws.  Other prescribers authorized to prescribe means the number of mental health practitioners other than psychiatrists who are authorized to prescribe as defined by state licensure laws."]
[null,"R","In column R, starting in cell R8, enter the number of Medicaid-enrolled psychiatrists or other practitioners who are authorized to prescribe in each geographic designation.  Medicaid-enrolled means any provider enrolled in Medicaid to obtain Medicaid billing privileges, as defined in 42 CFR §455.410."]
[null,"S","In column S, starting in cell S8, enter the number of Medicaid-enrolled psychiatrists or other practitioners who are authorized to prescribe and are accepting new Medicaid patients in each geographic designation.  Accepting new Medicaid patients means any provider enrolled in Medicaid to obtain Medicaid billing privileges who will treat new Medicaid-enrolled patients."]
[null,"T-V","In columns T-V, starting in cell T8, the availability assessment will automatically calculate the ratios in each geographic designation. The state should not input any values into these columns or modify the formulas in these columns. "]
[null,"W","In column W, beginning in cell W8, please use this space to provide notes about or qualifications to category data.  For example, use this cell to explain data limitations or missing data. "]
[null,"X","In column X, starting in cell X8, enter the number of other practitioners certified or licensed to independently treat mental illness in each geographic designation. Other types of practitioners certified or licensed to independently treat mental illness means non-psychiatrist mental health providers who are certified or licensed to independently treat mental illness as defined by state licensure laws. This may include, but is not limited to, licensed psychologists, clinical social workers, and professional counselors."]
[null,"Y","In column Y, starting in cell Y8, enter the number of Medicaid-enrolled other types of practitioners certified and licensed to independently treat mental illness in each geographic designation."]
[null,"Z","In column Z, starting in cell Z8, enter the number of Medicaid-enrolled other types of practitioners certified and licensed to independently treat mental illness accepting new Medicaid patients in each geographic designation."]
[null,"AA-AC","In columns AA-AC, starting in cell AA8, the availability assessment will automatically calculate the ratios in each geographic designation. The state should not input any values into these columns or modify the formulas in these columns. "]
[null,"AD","In column AD, beginning in cell AD8, please use this space to provide notes about or qualifications to category data.  For example, use this cell to explain data limitations or missing data. "]
[null,"AE","In column AE, starting in cell AE8, enter the number of community mental health centers (CMHCs) in each geographic designation. A community mental health center is an entity that provides outpatient mental health services, 24 hour emergency care services, day treatment, screenings, and consultation and educational services, as defined at 42 CFR §410.2."]
[null,"AF","In column AF, starting in cell AF8, enter the number of Medicaid-enrolled CMHCs in each geographic designation."]
[null,"AG","In column AG, starting in cell AG8, enter the number of Medicaid-enrolled CMHCs accepting new Medicaid patients in each geographic designation."]
[null,"AH-AJ","In columns AH-AJ, starting in cell AH8, the availability assessment will automatically calculate the ratios in each geographic designation. The state should not input any values into these columns or modify the formulas in these columns. "]
[null,"AK","In column AK, beginning in cell AK8, please use this space to provide notes about or qualifications to category data.  For example, use this cell to explain data limitations or missing data. "]
[null,"AL","In column AL, starting in cell AL8, enter the number of intensive outpatient/partial hospitalization providers in each geographic designation. Partial hospitalization or intensive outpatient services means a distinct and organized intensive ambulatory treatment program that offers less than 24-hour daily care other than in an individual's home or in an inpatient or residential setting."]
[null,"AM","In column AM, starting in cell AM8, enter the number of Medicaid-enrolled intensive outpatient/partial hospitalization providers in each geographic designation."]
[null,"AN","In column AN, starting in cell AN8, enter the number of Medicaid-enrolled intensive outpatient/partial hospitalization providers accepting new Medicaid patients in each geographic designation."]
[null,"AO-AQ","In column AO-AQ, starting in cell AO8, the availability assessment will automatically calculate the ratios in each geographic designation. The state should not input any values into these columns or modify the formulas in these columns. "]
[null,"AR","In column AR, beginning in cell AR8, please use this space to provide notes about or qualifications to category data. For example, use this cell to explain data limitations or missing data. "]
[null,"AS","In column AS, starting in cell AS8, enter the number of residential mental health treatment facilities (adult) in each geographic designation.  A residential mental health treatment facilities (adult) is a facility not licensed as a psychiatric hospital, whose primary purpose is to provide individually planned programs of mental health treatment services in a residential care setting for adults as defined for SAMHSA's N-MHSS. Please exclude residential SUD treatment facilities."]
[null,"AT","In column AT, starting in cell AT8, enter the number of Medicaid-enrolled residential mental health treatment facilities (adult) in each geographic designation."]
[null,"AU","In column AU, starting in cell AU8, enter the number of Medicaid-enrolled residential mental health treatment facilities (adult) accepting new Medicaid patients in each geographic designation."]
[null,"AV-AX","In column AV-AX, starting in cell AV8, the availability assessment will automatically calculate the ratios in each geographic designation. The state should not input any values into these columns or modify the formulas in these columns. "]
[null,"AY","In column AY, starting in cell AY8, enter the total number of residential mental health treatment facility beds (adult) in each geographic designation."]
[null,"AZ","In column AZ, starting in cell AZ8, enter the total number of Medicaid-enrolled residential mental health treatment beds (adult) in each geographic designation."]
[null,"BA","In column BA, starting in cell BA8, enter the total number of Medicaid-enrolled residential mental health treatment beds available to adult Medicaid patients in each geographic designation. Available to Medicaid adult Medicaid patients means any facility or bed available to serve Medicaid patients over the age of 18. "]
[null,"BB-BD","In column BB-BD, starting in cell BB8, the availability assessment will automatically calculate the ratios in each geographic designation. The state should not input any values into these columns or modify the formulas in these columns."]
[null,"BE","In column BE, beginning in cell BE8, please use this space to provide notes about or qualifications to category data. For example, use this cell to explain data limitations or missing data. "]
[null,"BF","In column BF, starting in cell BF8, enter the number of psychiatric residential treatment facilities (PRTF) in each geographic designation. A PRTF is a non-hospital facility with a provider agreement with a state Medicaid agency to provide the inpatient psychiatric services to individuals under age 21 benefit (psych under 21 benefit). The facility must be accredited by the Joint Commission, the Council on Accreditation of Services for Families and Children, the Commission on Accreditation of Rehabilitation Facilities, or any other accrediting organization with comparable standards recognized by the State. PRTFs must also meet the requirements at 42 CFR §441.151 - §441.182, and 42 CFR §483.350 – §483.376."]
[null,"BG","In column BG, starting in cell BG8, enter the number of Medicaid-enrolled PRTFs in each geographic designation."]
[null,"BH","In column BH, starting in cell BH8, enter the number of Medicaid-enrolled PRTFs accepting new Medicaid patients in each geographic designation."]
[null,"BI-BK","In column BI-BK, starting in cell BI8, the availability assessment will automatically calculate the ratios in each geographic designation. The state should not input any values into these columns or modify the formulas in these columns."]
[null,"BL","In column BL, starting in cell BL8, enter the total number of PRTF beds in each geographic designation."]
[null,"BM","In column BM, starting in cell BM8, enter the number of Medicaid-enrolled PRTF beds in each geographic designation."]
[null,"BN","In column BN, starting in cell BN8, enter the number of Medicaid-enrolled PRTF beds available to Medicaid patients in each geographic designation. Available to Medicaid patients means any facility or bed available to serve Medicaid patients."]
[null,"BO-BQ","In column BO-BQ, starting in cell BO8, the availability assessment will automatically calculate the ratios in each geographic designation. The state should not input any values into these columns or modify the formulas in these columns. "]
[null,"BR","In column BR, beginning in cell BR8, please use this space to provide notes about or qualifications to category data. For example, use this cell to explain data limitations or missing data. "]
[null,"BS","In column BS, starting in cell BS8, enter the number of psychiatric hospitals in each geographic designation. A psychiatric hospital is an institution which provides diagnosis and treatment of mentally ill persons, as defined at 42 USC §1395x.  "]
[null,"BT","In column BT, starting in cell BT8, enter the number of psychiatric hospitals available to Medicaid patients in each geographic designation."]
[null,"BU-BV","In column BU-BV, starting in cell BU8, the availability assessment will automatically calculate the ratios in each geographic designation. The state should not input any values into these columns or modify the formulas in these columns. "]
[null,"BW","In column BW, beginning in cell BW8, please use this space to provide notes about or qualifications to category data. For example, use this cell to explain data limitations or missing data. "]
[null,"BX","In column BX, starting in cell BX8, enter the number of psychiatric units in acute care hospitals in each geographic designation.  A psychiatric unit is a separate inpatient psychiatric unit of a general hospital that provides inpatient mental health services and has specifically allocated staff and space (beds) for the treatment of persons with mental illness, as defined for SAMHSA's N-MHSS."]
[null,"BY","In column BY, starting in cell BY8, enter the number of psychiatric units in critical access hospitals (CAHs) in each geographic designation.  A critical access hospital is a small facility that provides 24-hour emergency care, outpatient services, as well as inpatient services to people in rural areas, as defined in 42 CFR §485.606.  "]
[null,"BZ","In column BZ, starting in cell BZ8, enter the number of Medicaid-enrolled psychiatric units in acute care hospitals in each geographic designation."]
[null,"CA","In column CA, starting in cell CA8, enter the number of Medicaid-enrolled psychiatric units in CAHs in each geographic designation."]
[null,"CB","In column CB, starting in cell CB8, enter the number of Medicaid-enrolled psychiatric units in acute care hospitals accepting new Medicaid patients in each geographic designation."]
[null,"CC","In column CC starting in cell CC8, enter the number of Medicaid-enrolled psychiatric units in CAHs accepting new Medicaid patients in each geographic designation."]
[null,"CD-CI","In column CD-CI, starting in cell CD8, the availability assessment will automatically calculate the ratios in each geographic designation. The state should not input any values into these columns or modify the formulas in these columns. "]
[null,"CJ","In column CJ, beginning in cell CJ8, please use this space to provide notes about or qualifications to category data. For example, use this cell to explain data limitations or missing data. "]
[null,"CK","In column CK, starting in cell CK8, enter the number of licensed psychiatric hospital beds (psychiatric hospital + psychiatric units) in each geographic designation. Please enter the number of licensed psychiatric hospital beds as defined by state licensure requirements.  "]
[null,"CL","In column CL, starting in cell CL8, enter the number of licensed psychiatric hospital beds (psychiatric hospital + psychiatric units) available to Medicaid patients in each geographic designation."]
[null,"CM-CN","In column CM-CN, starting in cell CM8, the availability assessment will automatically calculate the ratios in each geographic designation. The state should not input any values into these columns or modify the formulas in these columns. "]
[null,"CO","In column CO, beginning in cell CO8, please use this space to provide notes about or qualifications to category data. For example, use this cell to explain data limitations or missing data. "]
[null,"CP","In column CP, starting in cell CP8, enter the number of residential mental health treatment facilities (adult) that qualify as an institution for mental diseases (IMDs) in each geographic designation. An IMD is a hospital, nursing facility, or other institution of more than 16 beds that is primarily engaged in providing diagnosis, treatment or care of persons with mental diseases, including medical attention, nursing care and related services per section 1905(i) of the Social Security Act. See also 42 CFR §435.1010 and section 4390 of the State Medicaid Manual."]
[null,"CQ","In column CQ, starting in cell CQ8, enter the number of Medicaid-enrolled residential mental health treatment facilities (adult) that qualify as IMDs in each geographic designation."]
[null,"CR","In column CR, starting in cell CR8, enter the number of Medicaid-enrolled residential mental health treatment facilities (adult) that qualify as IMDs accepting Medicaid patients in each geographic designation."]
[null,"CS-CU","In column CS-CU, starting in cell CS8, the availability assessment will automatically calculate the ratios in each geographic designation. The state should not input any values into these columns or modify the formulas in these columns."]
[null,"CV","In column CV, starting in cell CV8, enter the number of psychiatric hospitals that qualify as IMDs in each geographic designation."]
[null,"CW","In column CW, starting in cell CW8, the availability assessment will automatically calculate the ratios in each geographic designation. The state should not input any values into these columns or modify the formulas in these columns."]
[null,"CX","In column CX, beginning in cell CX8, please use this space to provide notes about or qualifications to category data. For example, use this cell to explain data limitations or missing data. "]
[null,"CY","In column CY, starting in cell CY8, enter the number of crisis call centers in each geographic designation. Please enter the number of crisis call centers as defined by the state. "]
[null,"CZ","In column CZ, starting in cell CZ8, enter the number of mobile crisis units in each geographic designation. A mobile crisis unit is a team that intervenes during mental health crises, as defined by the state."]
[null,"DA","In column DA, starting in cell DA8, enter the number of crisis observation/ assessment centers in each geographic designation. Please enter the number of observation or assessment centers as defined by the state."]
[null,"DB","In column DB, starting in cell DB8, enter the number of crisis stabilization units in each geographic designation. Crisis stabilization units offer medically monitored short-term crisis stabilization services, as defined by the state. "]
[null,"DC","In column DC, starting in cell DC8, enter the number of coordinated community crisis response teams in each geographic designation. Coordinated community crisis response means a community-based program or entity that manages crisis response across various community entities or programs, as defined by the state."]
[null,"DD-DH","In column DD-DH, starting in cell DD8, the availability assessment will automatically calculate the ratios in each geographic designation. The state should not input any values into these columns or modify the formulas in these columns."]
[null,"DI","In column DI, beginning in cell DI8, please use this space to provide notes about or qualifications to category data. For example, use this cell to explain data limitations or missing data. "]
[null,"DJ","In column DJ, starting in cell DJ8, enter the number FQHCs that offer behavioral health services in each geographic designation. Federally qualified health center (FQHC) means an entity that has entered into an agreement with CMS to meet Medicare program requirements under 42 CFR §405.2434 and 42 CFR §405.2401."]
[null,"DK","In column DK, starting in cell DK8,the availability assessment will automatically calculate the ratios in each geographic designation. The state should not input any values into these columns or modify the formulas in these columns. "]
[null,"DL","In column DL, beginning in cell DL8, please use this space to provide notes about or qualifications to category data."]
[null,"DM","Beginning in column DM, add additional counts and ratios for provider and setting types that the state considers important to its mental health system.  The state should not modify any of the previous columns. "]
[null,"End of worksheet"]

{"sheet":"Definitions","index":2,"n_rows":31,"n_cols":3,"rows_kept":31,"merged":[[0,1,0,2]]}
[null,"Definitions of terms used in the Availability Assessment"]
[null,"Term","Definition"]
[null,"Accepting new Medicaid patients","Accepting new Medicaid patients means any provider enrolled in Medicaid to obtain Medicaid billing privileges who will treat new Medicaid-enrolled patients."]
[null,"Available to Medicaid patients","Available to Medicaid patients means any facility or bed available to serve Medicaid patients. "]
[null,"Adult","An adult is a person age 18 and over [SMDL]."]
[null,"Community mental health center (CMHC)","A community mental health center (CMHC) is an entity that provides outpatient mental health services, 24 hour emergency care services, day treatment, screenings, and consultation and educational services, as defined at 42 CFR §410.2."]
[null,"Coordinated community crisis response","Coordinated community crisis response means a community-based program or entity that manages crisis response across various community entities or programs, as defined by the state."]
[null,"Crisis call center","Crisis call centers are defined by the state. "]
[null,"Crisis stabilization unit","Crisis stabilization units offer medically monitored short-term crisis stabilization services, as defined by the state. "]
[null,"Critical access hospital","A critical access hospital is a small facility that provides 24-hour emergency care, outpatient services, as well as inpatient services to people in rural areas, as defined in 42 CFR §485.606.  "]
[null,"Federally qualified health center","Federally qualified health center (FQHC) means an entity that has entered into an agreement with CMS to meet Medicare program requirements under 42 CFR §405.2434 and 42 CFR §405.2401"]
[null,"Geographic designation ","Geographic designation means a state-defined geographic unit for reporting data, such as county, region, or catchment area."]
[null,"Institution for mental diseases (IMD)","An institution for mental diseases is a hospital, nursing facility, or other institution of more than 16 beds that is primarily engaged in providing diagnosis, treatment or care of persons with mental diseases, including medical attention, nursing care and related services per section 1905(i) of the Social Security Act. See also 42 CFR §435.1010 and section 4390 of the State Medicaid Manual."]
[null,"Intensive outpatient services or partial hospitalization","Intensive outpatient services or partial hospitalization means a distinct and organized intensive ambulatory treatment program that offers less than 24-hour daily care other than in an individual's home or in an inpatient or residential setting. "]
[null,"Licensed psychiatric hospital bed","Licensed psychiatric hospital bedsare defined by state licensure requirements.  "]
[null,"Medicaid beneficiary","Medicaid beneficiary means a person who has been determined to be eligible to receive Medicaid services as defined at 42 CFR §400.200."]
[null,"Medicaid-enrolled","Medicaid-enrolled means any provider enrolled in Medicaid to obtain Medicaid billing privileges, as defined in 42 CFR §455.410."]
[null,"Mobile crisis unit","A mobile crisis unit is a team that intervenes during mental health crises, as defined by the state."]
[null,"Mental health practitioners other than psychiatrists who are authorized to prescribe","Mental health practitioners other than psychiatrists who are authorized to prescribe are defined by state licensure laws."]
[null,"Mental health practitioners other than psychiatrists who are certified or licensed by the state to independently treat mental illness. ","Mental health practitioners other than psychiatrists who are certified or licensed to treat mental illness are non-psychiatrist mental health providers who are certified or licensed to independently treat mental illness as defined by state licensure laws. This may include, but is not limited to, licensed psychologists, clinical social workers, and professional counselors ."]
[null,"Observation or assessment centers ","Observation or assessment centers are defined by the state."]
[null,"Psychiatric hospital ","A psychiatric hospital is an institution which provides diagnosis and treatment of mentally ill person, as defined at 42 USC §1395x. "]
[null,"Psychiatric residential treatment facility (PRTF)","A psychiatric residential treatment facility is a non-hospital facility with a provider agreement with a state Medicaid agency to provide the inpatient psychiatric services to individuals under age 21 benefit (psych under 21 benefit). The facility must be accredited by the Joint Commission, the Council on Accreditation of Services for Families and Children, the Commission on Accreditation of Rehabilitation Facilities, or any other accrediting organization with comparable standards recognized by the State. PRTFs must also meet the requirements at 42 CFR §441.151 - §441.182, and 42 CFR §483.350 – §483.376."]
[null,"Psychiatric unit","A psychiatric unit is a separate inpatient psychiatric unit of a general hospital that provides inpatient mental health services and has specifically allocated staff and space (beds) for the treatment of persons with mental illness, as defined for SAMHSA's National Mental Health Services Survey (N-MHSS)."]
[null,"Psychiatrist ","A psychiatrist is any psychiatrist licensed to practice in the state under state licensure laws"]
[null,"Residential mental health treatment facilities (adult) ","A residential mental health treatment facilities (adult) is a facility not licensed as a psychiatric hospital, whose primary purpose is to provide individually planned programs of mental health treatment services in a residential care setting for adults as defined for SAMHSA's N-MHSS. Please exclude residential SUD treatment facilities."]
[null,"Rural","Rural means any area outside an urban area as defined in 42 CFR § 412.64(b)"]
[null,"Serious emotional disturbance","Persons withserious emotional disturbance means individuals from birth up to age 18 who currently, or at any time during the past year, have had a diagnosable mental, behavioral, or emotional disorder of sufficient duration to meet diagnostic criteria that resulted in functional impairment which substantially interferes with or limits the child’s role or functioning in family, school, or community activities. Functional impairment” is defined as difficulties that substantially interfere with or limit a child or adolescent from achieving or maintaining one or more developmentally-appropriate social, behavioral, cognitive, communicative, or adaptive skills [SMDL]. "]
[null,"Serious mental illness","Persons with serious mental illness means individuals, age 18 and over, who currently, or at any time during the past year, have had a diagnosable mental, behavioral, or emotional disorder of sufficient duration to meet diagnostic criteria, that has resulted in functional impairment which substantially interferes with or limits one or more major life activities. [SMDL]\n\nNote: in the SMDL, SMI is defined to include individuals age 18 years and older, and SED includes children younger than 18. However, the residential treatment section of the availability assessment requests data on PRTFs, and the federal definition for PRTFs includes facilities that serve individuals under the age of 21. In order to avoid double counting beneficiaries in the residential treatment category, the assessment requests data on beneficiaries age 0-17, 18-20, and 21 and older separately."]
[null,"Urban","Urban means a Metropolitan Statistical Area or a Metropolitan division (in the case where a Metropolitan Statistical Area is divided into Metropolitan Divisions), as defined by the Executive Office of Management and Budget (42 CFR § 412.64(b))."]
[null,"End of worksheet"]

{"sheet":"Narrative Description","index":3,"n_rows":12,"n_cols":2,"rows_kept":12,"merged":[[0,1,0,12],[1,1,1,12],[2,1,2,12],[3,1,3,12],[4,1,4,12],[5,1,5,12],[6,1,6,12],[7,1,7,12],[8,1,8,12],[9,1,9,12],[10,1,10,12],[11,1,11,12]]}
[null,"Narrative Description (to be completed at baseline)"]
[null,"1. In the space below, describe the mental health service needs (e.g. prevalence and distribution of SMI/SED) of Medicaid beneficiaries with SMI/SED in the state at the beginning of the demonstration. [Limit responses to 500 words if possible]"]
[]
[null,"2. In the space below, describe the organization of the state’s Medicaid behavioral health service delivery system at the beginning of the demonstration. [Limit responses to 500 words if possible]"]
[]
[null,"3. In the space below, describe the availability of mental health services for Medicaid beneficiaries with SMI/SED in the state at the beginning of the demonstration.  At minimum, explain any variations across the state in the availability of the following: inpatient mental health services; outpatient and community-based services; crisis behavioral health services; and care coordination and care transition planning.  [Limit responses to 1000 words if possible] "]
[]
[null,"4. In the space below, describe any gaps the state identified in the availability of mental health services or service capacity while completing the Availability Assessment. [Limit responses to 500 words if possible]"]
[]
[null,"5. In the space below, describe any gaps in the availability of mental health services or service capacity NOT reflected in the Availability Assessment. [Limit responses to 500 words if possible]"]
[]
[null,"End of worksheet"]

{"sheet":"Availability Asesssment","index":4,"n_rows":20,"n_cols":116,"rows_kept":20,"merged":[[0,4,0,8],[1,4,1,8],[2,4,2,8],[4,4,4,15],[4,16,4,29],[4,30,4,36],[4,37,4,43],[4,44,4,69],[4,70,4,92],[4,93,4,101],[4,102,4,112],[4,113,4,115],[5,4,5,8],[5,9,5,11],[5,12,5,14],[5,16,5,22],[5,23,5,29],[5,44,5,56],[5,57,5,69],[5,70,5,74],[5,75,5,87],[5,88,5,92],[5,93,5,98],[5,99,5,101],[5,120,5,121],[7,15,17,15],[7,22,17,22],[7,29,17,29],[7,36,17,36],[7,43,17,43],[7,56,17,56],[7,69,17,69],[7,74,17,74],[7,87,17,87],[7,92,17,92],[7,101,17,101],[7,112,17,112],[7,115,17,115]]}
[null,"State Name"]
[null,"Date of Assessment"]
[null,"Time Period Reflected in Assessment"]
[]
[null,"Geographic Designation",null,null,"Beneficiaries",{"$nulls":11},"Providers",{"$nulls":13},"Community Mental Health Centers",{"$nulls":6},"Intensive Outpatient or Partial Hospitalization Providers",{"$nulls":6},"Residential Mental Health Treatment Facilities ",{"$nulls":25},"Inpatient",{"$nulls":22},"Institutions for Mental Diseases",{"$nulls":8},"Crisis Stabilization Services",{"$nulls":10},"Federally Qualified Health Centers"]
[{"$nulls":4},"Adult  ",{"$nulls":4},"Children",null,null,"Total",{"$nulls":3},"Psychiatrists or Other Practitioners Who Are Authorized to Prescribe",{"$nulls":6},"Other Practitioners Certified and Licensed to Independently Treat Mental Illness",{"$nulls":20},"Residential Mental Health Treatment Facilities (Adult)",{"$nulls":12},"Psychiatric Residential Treatment Facilities",{"$nulls":12},"Psychiatric Hospitals",{"$nulls":4},"Psychiatric Units",{"$nulls":12},"Psychiatric Beds",{"$nulls":4},"Residential Treatment Facilities That Qualify As IMDs",{"$nulls":5},"Psychiatric Hospitals That Qualify As IMDs"]
[null,"Geographic designation","Is this geographic designation primarily urban or rural?","Geographic Designation Notes","Number of adult Medicaid beneficiaries (18 - 20)","Number of adult Medicaid beneficiaries with SMI \n(18 - 20)","Number of adult Medicaid beneficiaries (21+)","Number of adult Medicaid beneficiaries with SMI (21+)","Percent with SMI (Adult)","Number of Medicaid beneficiaries (0 - 17)","Number of Medicaid beneficiaries with SED \n(0 - 17)","Percent with SED (0-17)","Number of Medicaid beneficiaries (Total)","Number of Medicaid beneficiaries with SMI or SED (Total)","Percent with SMI or SED (Total)","Beneficiary Category Notes","Number of Psychiatrists or Other Practitioners Who Are Authorized to Prescribe","Number of Medicaid-Enrolled Psychiatrists or Other Practitioners Who Are Authorized to Prescribe","Number of Medicaid-Enrolled Psychiatrists or Other Practitioners Who Are Authorized to Prescribe Accepting New Medicaid Patients","Ratio of Medicaid beneficiaries with SMI/SED to Medicaid-Enrolled Psychiatrists or Other Prescribers ","Ratio of Total Psychiatrists or Other Prescribers to Medicaid-Enrolled Psychiatrists or Other Prescribers","Ratio of Medicaid-Enrolled Psychiatrists or Other Prescribers to Medicaid-Enrolled Psychiatrists or Other Prescribers Accepting New Medicaid Patients","Psychiatrists or Other Practitioners Who Are Authorized to Prescribe Category Notes","Number of Other Practitioners Certified or Licensed to Independently Treat Mental Illness","Number of Medicaid-Enrolled Other Practitioners Certified or Licensed to Independently Treat Mental Illness","Number of Medicaid-Enrolled Other Practitioners Certified or Licensed to Independently Treat Mental Illness Accepting New Medicaid Patients","Ratio of Medicaid Beneficiaries with SMI/SED to Medicaid-Enrolled Other Practitioners Certified or Licensed to Independently Treat Mental Illness","Ratio of Other Practitioners Certified or Licensed to Independently Treat Mental Illness to Medicaid-Enrolled Other Practitioners Certified or Licensed to Independently Treat Mental Illness","Ratio of Medicaid-Enrolled Other Practitioners Certified and Licensed to Independently Treat Mental Illness to Medicaid-Enrolled Other Practitioners Certified and Licensed to Independently Treat Mental Illness Accepting New Patients","Other Practitioner Category Notes","Number of CMHCs","Number of Medicaid- Enrolled CMHCs ","Number of Medicaid-Enrolled CMHCs Accepting New Medicaid Patients","Ratio of Medicaid Beneficiaries with SMI/SED to Medicaid- Enrolled CMHCs ","Ratio of Total CMHCs to Medicaid- Enrolled CMHCs","Ratio of Medicaid-Enrolled CMHCs to Medicaid-Enrolled CMHCs Accepting New Patients","CMHC Category Notes","Number of Intensive Outpatient/ Partial Hospitalization Providers","Number of Medicaid-Enrolled Intensive Outpatient/ Partial Hospitalization Providers","Number of Medicaid-Enrolled Intensive Outpatient/Partial Hospitalization Providers Accepting New Medicaid Patients","Ratio of Medicaid Beneficiaries with SMI/SED to Medicaid- Enrolled Intensive Outpatient/ Partial Hospitalization Providers ","Ratio of Total Partial Hospitalization/ Day Treatment Providers to Medicaid-Enrolled Intensive Outpatient/ Partial Hospitalization Providers","Ratio of Medicaid-Enrolled Partial Hospitalization/ Day Treatment Providers to Medicaid- Enrolled Intensive Outpatient/ Partial Hospitalization Providers Accepting New Medicaid Patients","Intensive Outpatient/  Partial Hospitalization Category Notes","Number of Residential Mental Health Treatment Facilities (Adult)","Number of Medicaid- Enrolled Residential Mental Health Treatment Facilities (Adult)","Number of Medicaid-Enrolled Residential Mental Health Treatment Facilities Accepting New Medicaid Patients (Adult)","Ratio of Medicaid Beneficiaries with SMI (Adult) to Medicaid- Enrolled Residential Mental Health Treatment Facilities (Adult) ","Ratio of Total Residential Mental Health Treatment Facilities (Adult) to Medicaid-Enrolled Residential Mental Health Treatment Facilities (Adult)","Ratio of Medicaid-Enrolled Residential Mental Health Treatment Facilities (Adult) to Medicaid- Enrolled Residential Mental Health Treatment Facilities (Adult) Accepting New Patients","Total Number of Residential Mental Health Treatment Facility Beds (Adult)","Total Number of Medicaid- Enrolled Residential Mental Health Treatment Beds (Adult)","Total Number of Medicaid-Enrolled Residential Mental Health Treatment Beds Available to Adult Medicaid Patients","Ratio of Medicaid Beneficiaries with SMI (Adult) to Medicaid-Enrolled Residential Mental Health Treatment Beds ","Ratio of Total Residential Mental Health Treatment Beds to Medicaid-Enrolled Residential Mental Health Treatment Beds","Ratio of Medicaid-Enrolled Residential Mental Health Treatment Beds to Medicaid- Enrolled Residential Mental Health Treatment Beds Available to Medicaid Patients","Residential Mental Health Treatment Facility Category Notes (Adult)","Number of Psychiatric Residential Treatment Facilities (PRTF) ","Number of Medicaid- Enrolled PRTFs","Number of Medicaid-Enrolled PRTFs Accepting New Medicaid Patients","Ratio of Medicaid Beneficiaries with SED to Medicaid-Enrolled PTRFs ","Ratio of Total PTRFs to Medicaid- Enrolled PRTFs","Ratio of Medicaid-Enrolled PRTFs to Medicaid-Enrolled PRTFs Accepting New Medicaid Patients","Total Number of PRTF Beds","Number of Medicaid-Enrolled PRTF Beds","Number of Medicaid-Enrolled PRTF Beds Available to Medicaid Patients","Ratio of Medicaid Beneficiaries with SED to Medicaid-Enrolled PRTF Beds Available to Medicaid Patients","Ratio of Total Number of PRTF Beds to Medicaid- Enrolled PRTF Beds","Ratio of Medicaid- Enrolled PRTF Beds to Medicaid- Enrolled PRTFs Available to Medicaid Patients","Psychiatric Residential Treatment Facility (Under 21) Category Notes","Number of Psychiatric  Hospitals    ","Psychiatric Hospitals Available to Medicaid Patients","Ratio of Medicaid Beneficiaries with SMI/SED to Psychiatric Hospitals Available to Medicaid Patients","Ratio of Psychiatric Hospitals to Psychiatric Hospitals Available to Medicaid Patients","Psychiatric Hospital Category Notes","Number of Psychiatric Units in Acute Care Hospitals","Number of Psychiatric Units in Critical Access Hospitals (CAHs)","Number of Medicaid- Enrolled Psychiatric Units in Acute Care Hospitals","Number of Medicaid-Enrolled Psychiatric Units in CAHs","Number of Medicaid-Enrolled Psychiatric Units in Acute Care Hospitals Accepting New Medicaid Patients","Number of Medicaid-Enrolled Psychiatric Units in CAHs Accepting New Medicaid Patients","Ratio of Medicaid Beneficiaries with SMI/SED to Medicaid-Enrolled Psychiatric Units in Acute Care Hospitals ","Ratio of Medicaid Beneficiaries with SMI/SED to Medicaid-Enrolled Psychiatric Units in CAHs","Ratio of Psychiatric Units in Acute Care Hospitals to Medicaid-Enrolled Psychiatric Units in Acute Care Hospitals","Ratio of Psychiatric Units in CAHs to Medicaid-Enrolled Psychiatric Units in CAHs","Ratio of Medicaid-Enrolled Psychiatric Units in Acute Care Hospitals to Medicaid-Enrolled Psychiatric Units in Acute Care Hospitals Accepting New Medicaid Patients","Ratio of Medicaid-Enrolled Psychiatric Units in CAHs to Medicaid-Enrolled Psychiatric Units in CAHs Accepting New Medicaid Patients","Psychiatric Unit Category Notes","Number of Licensed Psychiatric  Hospital Beds (Psychiatric Hospital + Psychiatric Units)","Number of Licensed Psychiatric Hospital Beds (Psychiatric Hospital + Psychiatric Units) Available to Medicaid Patients","Ratio of Medicaid Beneficiaries with SMI/SED to Licensed Psychiatric Hospital Beds Available to Medicaid Patients","Ratio of Licensed Psychiatric Hospital Beds to Licensed Psychiatric Hospital Beds Available to Medicaid Patients ","Psychiatric Beds Category Notes","Number of Residential Mental Health Treatment Facilities (Adult) that Qualify as IMDs ","Number of Medicaid- Enrolled Residential Mental Health Treatment Facilities (Adult) that Qualify as IMDs","Number of Medicaid- Enrolled Residential Mental Health Treatment Facilities (Adult) that Qualify as IMDs Accepting Medicaid Patients","Ratio of Medicaid Beneficiaries with SMI (Adult) to Medicaid- Enrolled Residential Mental Health Treatment Facilities that Qualify as IMDs ","Ratio of Total Residential Mental Health Treatment Facilities (Adult) that Qualify as IMDs to Medicaid-Enrolled Residential Mental Health Treatment Facilities (Adult) that Qualify as IMDs","Ratio of Medicaid-Enrolled Residential Mental Health Treatment Facilities (Adult) that Qualify as IMDs to Medicaid- Enrolled Residential Mental Health Treatment Facilities (Adult) that Qualify as IMDs Accepting New Medicaid Patients","Number of Psychiatric Hospitals that Qualify as IMDs","Ratio of Medicaid Beneficiaries with SMI/SED to Psychiatric Hospitals that Qualify as IMDs ","Facilities That Qualify As IMDs Category Notes","Number of Crisis Call Centers","Number of Mobile Crisis Units","Number of Crisis Observation/ Assessment Centers","Number of Crisis Stabilization Units","Number of Coordinated Community Crisis Response Teams","Ratio of Medicaid Beneficiaries with SMI/SED to Crisis Call Centers  ","Ratio of Medicaid Beneficiaries with SMI/SED to Mobile Crisis Units ","Ratio of Medicaid Beneficiaries with SMI/SED to Crisis Observation/ Assessment Centers ","Ratio of Medicaid Beneficiaries with SMI/SED to Crisis Stabilization Units ","Ratio of Medicaid Beneficiaries with SMI/SED to Coordinated Community Crisis Response Teams ","Crisis Stabilization Services Category Notes","Number FQHCs that Offer Behavioral Health Services","Ratio of Medicaid Beneficiaries with SMI/SED to FQHCs that Offer Behavioral Health Services ","FQHC Category Notes"]
[{"$f":"TEXT(1,\"#.\")","v":"1."},{"$nulls":7},{"$f":"IFERROR((F8+H8)/(E8+G8),\"-\")","v":"-"},null,null,{"$f":"IFERROR(K8/J8,\"-\")","v":"-"},{"$f":"E8+G8+J8","v":0},{"$f":"F8+H8+K8","v":0},{"$f":"IFERROR(N8/M8,\"-\")","v":"-"},{"$nulls":4},{"$f":"IFERROR(N8/R8,\"-\")","v":"-"},{"$f":"IFERROR(Q8/R8,\"-\")","v":"-"},{"$f":"IFERROR(R8/S8,\"-\")","v":"-"},{"$nulls":4},{"$f":"IFERROR(N8/Y8,\"-\")","v":"-"},{"$f":"IFERROR(X8/Y8,\"-\")","v":"-"},{"$f":"IFERROR(Y8/Z8,\"-\")","v":"-"},{"$nulls":4},{"$f":"IFERROR(N8/AF8,\"-\")","v":"-"},{"$f":"IFERROR(AE8/AF8,\"-\")","v":"-"},{"$f":"IFERROR(AF8/AG8,\"-\")","v":"-"},{"$nulls":4},{"$f":"IFERROR(N8/AM8,\"-\")","v":"-"},{"$f":"IFERROR(AL8/AM8,\"-\")","v":"-"},{"$f":"IFERROR(AM8/AN8,\"-\")","v":"-"},{"$nulls":4},{"$f":"IFERROR((F8+H8)/AT8,\"-\")","v":"-"},{"$f":"IFERROR(AS8/AT8,\"-\")","v":"-"},{"$f":"IFERROR(AT8/AU8,\"-\")","v":"-"},{"$nulls":3},{"$f":"IFERROR((F8+H8)/AZ8,\"-\")","v":"-"},{"$f":"IFERROR(AY8/AZ8,\"-\")","v":"-"},{"$f":"IFERROR(AZ8/BA8,\"-\")","v":"-"},{"$nulls":4},{"$f":"IFERROR(K8/BG8,\"-\")","v":"-"},{"$f":"IFERROR(BF8/BG8,\"-\")","v":"-"},{"$f":"IFERROR(BG8/BH8,\"-\")","v":"-"},{"$nulls":3},{"$f":"IFERROR(K8/BN8,\"-\")","v":"-"},{"$f":"IFERROR(BL8/BM8,\"-\")","v":"-"},{"$f":"IFERROR(BM8/BN8,\"-\")","v":"-"},{"$nulls":3},{"$f":"IFERROR(N8/BT8,\"-\")","v":"-"},{"$f":"IFERROR(BS8/BT8,\"-\")","v":"-"},{"$nulls":7},{"$f":"IFERROR(N8/BZ8,\"-\")","v":"-"},{"$f":"IFERROR(N8/CA8,\"-\")","v":"-"},{"$f":"IFERROR(BX8/BZ8,\"-\")","v":"-"},{"$f":"IFERROR(BY8/CA8,\"-\")","v":"-"},{"$f":"IFERROR(BZ8/CB8,\"-\")","v":"-"},{"$f":"IFERROR(CA8/CC8,\"-\")","v":"-"},{"$nulls":3},{"$f":"IFERROR(N8/CL8,\"-\")","v":"-"},{"$f":"IFERROR(CK8/CL8,\"-\")","v":"-"},{"$nulls":4},{"$f":"IFERROR((F8+H8)/CQ8,\"-\")","v":"-"},{"$f":"IFERROR(CP8/CQ8,\"-\")","v":"-"},{"$f":"IFERROR(CQ8/CR8,\"-\")","v":"-"},null,{"$f":"IFERROR(N8/CV8,\"-\")","v":"-"},{"$nulls":6},{"$f":"IFERROR(N8/CY8,\"-\")","v":"-"},{"$f":"IFERROR(N8/CZ8,\"-\")","v":"-"},{"$f":"IFERROR(N8/DA8,\"-\")","v":"-"},{"$f":"IFERROR(N8/DB8,\"-\")","v":"-"},{"$f":"IFERROR(N8/DC8,\"-\")","v":"-"},null,null,{"$f":"IFERROR(N8/DJ8,\"-\")","v":"-"}]
[{"$f":"TEXT(A8+1,\"#.\")","v":"2."},{"$nulls":7},"-",null,null,{"$f":"IFERROR(K9/J9,\"-\")","v":"-"},{"$f":"E9+G9+J9","v":0},0,"-",{"$nulls":4},{"$f":"IFERROR(N9/R9,\"-\")","v":"-"},{"$f":"IFERROR(Q9/R9,\"-\")","v":"-"},{"$f":"IFERROR(R9/S9,\"-\")","v":"-"},{"$nulls":4},{"$f":"IFERROR(N9/Y9,\"-\")","v":"-"},{"$f":"IFERROR(X9/Y9,\"-\")","v":"-"},{"$f":"IFERROR(Y9/Z9,\"-\")","v":"-"},{"$nulls":4},{"$f":"IFERROR(N9/AF9,\"-\")","v":"-"},{"$f":"IFERROR(AE9/AF9,\"-\")","v":"-"},{"$f":"IFERROR(AF9/AG9,\"-\")","v":"-"},{"$nulls":4},{"$f":"IFERROR(N9/AM9,\"-\")","v":"-"},{"$f":"IFERROR(AL9/AM9,\"-\")","v":"-"},{"$f":"IFERROR(AM9/AN9,\"-\")","v":"-"},{"$nulls":4},{"$f":"IFERROR((F9+H9)/AT9,\"-\")","v":"-"},{"$f":"IFERROR(AS9/AT9,\"-\")","v":"-"},{"$f":"IFERROR(AT9/AU9,\"-\")","v":"-"},{"$nulls":3},"-",{"$f":"IFERROR(AY9/AZ9,\"-\")","v":"-"},{"$f":"IFERROR(AZ9/BA9,\"-\")","v":"-"},{"$nulls":4},"-",{"$f":"IFERROR(BF9/BG9,\"-\")","v":"-"},{"$f":"IFERROR(BG9/BH9,\"-\")","v":"-"},{"$nulls":3},{"$f":"IFERROR(K9/BN9,\"-\")","v":"-"},{"$f":"IFERROR(BL9/BM9,\"-\")","v":"-"},{"$f":"IFERROR(BM9/BN9,\"-\")","v":"-"},{"$nulls":3},{"$f":"IFERROR(N9/BT9,\"-\")","v":"-"},"-",{"$nulls":7},"-","-",{"$f":"IFERROR(BX9/BZ9,\"-\")","v":"-"},{"$f":"IFERROR(BY9/CA9,\"-\")","v":"-"},{"$f":"IFERROR(BZ9/CB9,\"-\")","v":"-"},{"$f":"IFERROR(CA9/CC9,\"-\")","v":"-"},{"$nulls":3},"-",{"$f":"IFERROR(CK9/CL9,\"-\")","v":"-"},{"$nulls":4},"-",{"$f":"IFERROR(CP9/CQ9,\"-\")","v":"-"},{"$f":"IFERROR(CQ9/CR9,\"-\")","v":"-"},null,"-",{"$nulls":6},"-","-","-","-","-",null,null,"-"]
[{"$f":"TEXT(A9+1,\"#.\")","v":"3."},{"$nulls":7},"-",null,null,{"$f":"IFERROR(K10/J10,\"-\")","v":"-"},{"$f":"E10+G10+J10","v":0},0,"-",{"$nulls":4},"-","-","-",{"$nulls":4},"-","-","-",{"$nulls":4},"-","-","-",{"$nulls":4},"-","-","-",{"$nulls":4},"-","-","-",{"$nulls":3},"-","-","-",{"$nulls":4},"-","-","-",{"$nulls":3},"-","-","-",{"$nulls":3},"-","-",{"$nulls":7},"-","-","-","-","-","-",{"$nulls":3},"-","-",{"$nulls":4},"-","-","-",null,"-",{"$nulls":6},"-","-","-","-","-",null,null,"-"]
["4.",{"$nulls":7},"-",null,null,"-",0,0,"-",{"$nulls":4},"-","-","-",{"$nulls":4},"-","-","-",{"$nulls":4},"-","-","-",{"$nulls":4},"-","-","-",{"$nulls":4},"-","-","-",{"$nulls":3},"-","-","-",{"$nulls":4},"-","-","-",{"$nulls":3},"-","-","-",{"$nulls":3},"-","-",{"$nulls":7},"-","-","-","-","-","-",{"$nulls":3},"-","-",{"$nulls":4},"-","-","-",null,"-",{"$nulls":6},"-","-","-","-","-",null,null,"-"]
["5.",{"$nulls":7},"-",null,null,"-",0,0,"-",{"$nulls":4},"-","-","-",{"$nulls":4},"-","-","-",{"$nulls":4},"-","-","-",{"$nulls":4},"-","-","-",{"$nulls":4},"-","-","-",{"$nulls":3},"-","-","-",{"$nulls":4},"-","-","-",{"$nulls":3},"-","-","-",{"$nulls":3},"-","-",{"$nulls":7},"-","-","-","-","-","-",{"$nulls":3},"-","-",{"$nulls":4},"-","-","-",null,"-",{"$nulls":6},"-","-","-","-","-",null,null,"-"]
["6.",{"$nulls":7},"-",null,null,"-",0,0,"-",{"$nulls":4},"-","-","-",{"$nulls":4},"-","-","-",{"$nulls":4},"-","-","-",{"$nulls":4},"-","-","-",{"$nulls":4},"-","-","-",{"$nulls":3},"-","-","-",{"$nulls":4},"-","-","-",{"$nulls":3},"-","-","-",{"$nulls":3},"-","-",{"$nulls":7},"-","-","-","-","-","-",{"$nulls":3},"-","-",{"$nulls":4},"-","-","-",null,"-",{"$nulls":6},"-","-","-","-","-",null,null,"-"]
["7.",{"$nulls":7},"-",null,null,"-",0,0,"-",{"$nulls":4},"-","-","-",{"$nulls":4},"-","-","-",{"$nulls":4},"-","-","-",{"$nulls":4},"-","-","-",{"$nulls":4},"-","-","-",{"$nulls":3},"-","-","-",{"$nulls":4},"-","-","-",{"$nulls":3},"-","-","-",{"$nulls":3},"-","-",{"$nulls":7},"-","-","-","-","-","-",{"$nulls":3},"-","-",{"$nulls":4},"-","-","-",null,"-",{"$nulls":6},"-","-","-","-","-",null,null,"-"]
["8.",{"$nulls":7},"-",null,null,"-",0,0,"-",{"$nulls":4},"-","-","-",{"$nulls":4},"-","-","-",{"$nulls":4},"-","-","-",{"$nulls":4},"-","-","-",{"$nulls":4},"-","-","-",{"$nulls":3},"-","-","-",{"$nulls":4},"-","-","-",{"$nulls":3},"-","-","-",{"$nulls":3},"-","-",{"$nulls":7},"-","-","-","-","-","-",{"$nulls":3},"-","-",{"$nulls":4},"-","-","-",null,"-",{"$nulls":6},"-","-","-","-","-",null,null,"-"]
["9.",{"$nulls":7},"-",null,null,"-",0,0,"-",{"$nulls":4},"-","-","-",{"$nulls":4},"-","-","-",{"$nulls":4},"-","-","-",{"$nulls":4},"-","-","-",{"$nulls":4},"-","-","-",{"$nulls":3},"-","-","-",{"$nulls":4},"-","-","-",{"$nulls":3},"-","-","-",{"$nulls":3},"-","-",{"$nulls":7},"-","-","-","-","-","-",{"$nulls":3},"-","-",{"$nulls":4},"-","-","-",null,"-",{"$nulls":6},"-","-","-","-","-",null,null,"-"]
["10.",{"$nulls":7},"-",null,null,"-",0,0,"-",{"$nulls":4},"-","-","-",{"$nulls":4},"-","-","-",{"$nulls":4},"-","-","-",{"$nulls":4},"-","-","-",{"$nulls":4},"-","-","-",{"$nulls":3},"-","-","-",{"$nulls":4},"-","-","-",{"$nulls":3},"-","-","-",{"$nulls":3},"-","-",{"$nulls":7},"-","-","-","-","-","-",{"$nulls":3},"-","-",{"$nulls":4},"-","-","-",null,"-",{"$nulls":6},"-","-","-","-","-",null,null,"-"]
["11.",{"$nulls":7},{"$f":"IFERROR((F18+H18)/(E18+G18),\"-\")","v":"-"},null,null,{"$f":"IFERROR(K18/J18,\"-\")","v":"-"},{"$f":"E18+G18+J18","v":0},{"$f":"F18+H18+K18","v":0},{"$f":"IFERROR(N18/M18,\"-\")","v":"-"},{"$nulls":4},"-","-","-",{"$nulls":4},"-","-","-",{"$nulls":4},"-","-","-",{"$nulls":4},"-","-","-",{"$nulls":4},"-","-","-",{"$nulls":3},"-","-","-",{"$nulls":4},"-","-","-",{"$nulls":3},"-","-","-",{"$nulls":3},"-","-",{"$nulls":7},"-","-",{"$f":"IFERROR(BX18/BZ18,\"-\")","v":"-"},{"$f":"IFERROR(BY18/CA18,\"-\")","v":"-"},{"$f":"IFERROR(BZ18/CB18,\"-\")","v":"-"},{"$f":"IFERROR(CA18/CC18,\"-\")","v":"-"},{"$nulls":3},"-","-",{"$nulls":4},"-","-","-",null,"-",{"$nulls":6},"-","-","-","-","-",null,null,"-"]
[null,"Total",null,null,{"$f":"SUM(E8:OFFSET(E19,-1,0))","v":0},{"$f":"SUM(F8:OFFSET(F19,-1,0))","v":0},{"$f":"SUM(G8:OFFSET(G19,-1,0))","v":0},{"$f":"SUM(H8:OFFSET(H19,-1,0))","v":0},"-",{"$f":"SUM(J8:OFFSET(J19,-1,0))","v":0},{"$f":"SUM(K8:OFFSET(K19,-1,0))","v":0},"-",{"$f":"SUM(M8:OFFSET(M19,-1,0))","v":0},{"$f":"SUM(N8:OFFSET(N19,-1,0))","v":0},{"$f":"IFERROR(N19/M19,\"-\")","v":"-"},null,{"$f":"SUM(Q8:OFFSET(Q19,-1,0))","v":0},{"$f":"SUM(R8:OFFSET(R19,-1,0))","v":0},{"$f":"SUM(S8:OFFSET(S19,-1,0))","v":0},{"$f":"IFERROR(N19/R19,\"-\")","v":"-"},{"$f":"IFERROR(Q19/R19,\"-\")","v":"-"},{"$f":"IFERROR(R19/S19,\"-\")","v":"-"},null,{"$f":"SUM(X8:OFFSET(X19,-1,0))","v":0},{"$f":"SUM(Y8:OFFSET(Y19,-1,0))","v":0},{"$f":"SUM(Z8:OFFSET(Z19,-1,0))","v":0},{"$f":"IFERROR(N19/Y19,\"-\")","v":"-"},{"$f":"IFERROR(X19/Y19,\"-\")","v":"-"},{"$f":"IFERROR(Y19/Z19,\"-\")","v":"-"},null,{"$f":"SUM(AE8:OFFSET(AE19,-1,0))","v":0},{"$f":"SUM(AF8:OFFSET(AF19,-1,0))","v":0},{"$f":"SUM(AG8:OFFSET(AG19,-1,0))","v":0},{"$f":"IFERROR(N19/AF19,\"-\")","v":"-"},{"$f":"IFERROR(AE19/AF19,\"-\")","v":"-"},{"$f":"IFERROR(AF19/AG19,\"-\")","v":"-"},null,{"$f":"SUM(AL8:OFFSET(AL19,-1,0))","v":0},{"$f":"SUM(AM8:OFFSET(AM19,-1,0))","v":0},{"$f":"SUM(AN8:OFFSET(AN19,-1,0))","v":0},{"$f":"IFERROR(N19/AM19,\"-\")","v":"-"},{"$f":"IFERROR(AL19/AM19,\"-\")","v":"-"},{"$f":"IFERROR(AM19/AN19,\"-\")","v":"-"},null,{"$f":"SUM(AS8:OFFSET(AS19,-1,0))","v":0},{"$f":"SUM(AT8:OFFSET(AT19,-1,0))","v":0},{"$f":"SUM(AU8:OFFSET(AU19,-1,0))","v":0},{"$f":"IFERROR((F19+H19)/AT19,\"-\")","v":"-"},"-","-",{"$f":"SUM(AY8:OFFSET(AY19,-1,0))","v":0},{"$f":"SUM(AZ8:OFFSET(AZ19,-1,0))","v":0},{"$f":"SUM(BA8:OFFSET(BA19,-1,0))","v":0},"-","-","-",null,{"$f":"SUM(BF8:OFFSET(BF19,-1,0))","v":0},{"$f":"SUM(BG8:OFFSET(BG19,-1,0))","v":0},{"$f":"SUM(BH8:OFFSET(BH19,-1,0))","v":0},"-","-","-",{"$f":"SUM(BL8:OFFSET(BL19,-1,0))","v":0},{"$f":"SUM(BM8:OFFSET(BM19,-1,0))","v":0},{"$f":"SUM(BN8:OFFSET(BN19,-1,0))","v":0},"-","-","-",null,{"$f":"SUM(BS8:OFFSET(BS19,-1,0))","v":0},{"$f":"SUM(BT8:OFFSET(BT19,-1,0))","v":0},{"$f":"IFERROR(N19/BT19,\"-\")","v":"-"},"-",null,{"$f":"SUM(BX8:OFFSET(BX19,-1,0))","v":0},{"$f":"SUM(BY8:OFFSET(BY19,-1,0))","v":0},{"$f":"SUM(BZ8:OFFSET(BZ19,-1,0))","v":0},{"$f":"SUM(CA8:OFFSET(CA19,-1,0))","v":0},{"$f":"SUM(CB8:OFFSET(CB19,-1,0))","v":0},{"$f":"SUM(CC8:OFFSET(CC19,-1,0))","v":0},"-","-","-","-","-","-",null,{"$f":"SUM(CK8:OFFSET(CK19,-1,0))","v":0},{"$f":"SUM(CL8:OFFSET(CL19,-1,0))","v":0},"-",{"$f":"IFERROR(CK19/CL19,\"-\")","v":"-"},null,{"$f":"SUM(CP8:OFFSET(CP19,-1,0))","v":0},{"$f":"SUM(CQ8:OFFSET(CQ19,-1,0))","v":0},{"$f":"SUM(CR8:OFFSET(CR19,-1,0))","v":0},"-",{"$f":"IFERROR(CP19/CQ19,\"-\")","v":"-"},"-",{"$f":"SUM(CV8:OFFSET(CV19,-1,0))","v":0},"-",null,{"$f":"SUM(CY8:OFFSET(CY19,-1,0))","v":0},{"$f":"SUM(CZ8:OFFSET(CZ19,-1,0))","v":0},{"$f":"SUM(DA8:OFFSET(DA19,-1,0))","v":0},{"$f":"SUM(DB8:OFFSET(DB19,-1,0))","v":0},{"$f":"SUM(DC8:OFFSET(DC19,-1,0))","v":0},"-","-","-","-","-",null,{"$f":"SUM(DJ8:OFFSET(DJ19,-1,0))","v":0},"-"]
[{"$nulls":6}," "]